bitfinex-derivatives/quotes_SOLF0:USTF0_20250803
["timestamp","ask_amount","ask_price","bid_price","bid_amount"]
[1754236972235,9.5611,161.79,161.78,122.02470777]
[1754236973528,12.3538,161.9,161.79,2.8]
[1754236973733,3.38,161.89,161.81,2.8]
[1754236973933,3.38,161.89,161.81,115.8]
[1754236975033,3.38,161.82,161.81,115.8]
[1754236976033,9.5598,161.82,161.81,115.8]
[1754236976530,3.38,161.82,161.81,115.8]
[1754236977931,3.38,161.83,161.82,2.8]
[1754236978141,3.38,161.83,161.82,9.02470777]
[1754236979433,3.38,161.85,161.83,2.8]
[1754236979632,3.38,161.85,161.84,122.02470777]
[1754236979933,3.38,161.85,161.84,119.22470777]
[1754236980339,9.5587,161.85,161.84,6.22470777]
[1754236980541,9.5587,161.85,161.84,119.22470777]
[1754236984337,3.38,161.85,161.84,119.22470777]
[1754236985442,3.38,161.85,161.84,113.0]
[1754236986236,9.5587,161.85,161.84,113.0]
[1754236988840,3.38,161.85,161.84,113.0]
[1754236991145,9.5587,161.85,161.84,113.0]
[1754236992650,3.38,161.87,161.78,7.99807241]
[1754236992942,3.38,161.87,161.79,112.98]
[1754236993157,3.38,161.81,161.79,115.8]
[1754236993746,6.1801,161.82,161.79,115.8]
[1754236993944,3.38,161.8,161.79,115.8]
[1754236994347,3.38,161.8,161.79,112.98]
[1754236994752,3.38,161.8,161.79,115.8]
[1754236999952,3.38,161.82,161.8,2.82]
[1754237000158,3.38,161.9,161.82,2.82]
[1754237000448,3.38,161.88,161.84,2.82]
[1754237000645,4.69910316,161.87,161.83,112.98]
[1754237000847,3.38,161.85,161.83,112.98]
[1754237001046,10.87820316,161.84,161.83,112.98]
[1754237001250,14.25820316,161.84,161.83,112.98]
[1754237002456,8.07910316,161.84,161.83,115.8]
[1754237004558,8.07910316,161.84,161.83,112.98]
[1754237005154,3.38,161.84,161.83,112.98]
[1754237006252,6.22470777,161.87,161.79,6.22470777]
[1754237006457,3.38,161.86,161.8,112.98]
[1754237006858,9.5602,161.81,161.8,112.98]
[1754237007460,3.38,161.8,161.78,112.98]
[1754237007760,3.38,161.8,161.78,115.8]
[1754237008363,3.38,161.79,161.78,115.8]
[1754237014661,6.1803,161.81,161.78,115.8]
[1754237014859,3.38,161.81,161.8,2.82]
[1754237015059,8.02009618,161.81,161.8,115.8]
[1754237016364,14.20029618,161.81,161.8,115.8]
[1754237016564,14.20029618,161.81,161.8,112.98]
[1754237018662,14.20029618,161.81,161.77,6.22470777]
[1754237018859,10.82079618,161.8,161.78,112.98]
[1754237019059,3.38,161.79,161.78,112.98]
[1754237023362,9.561,161.79,161.78,112.98]
[1754237023770,3.51,161.78,161.73,14.22278018]
[1754237023967,3.51,161.76,161.73,5.17807241]
[1754237024267,4.64757526,161.75,161.72,112.98]
[1754237024464,6.1833,161.73,161.71,13.62954]
[1754237024769,3.51,161.72,161.71,126.60954]
[1754237024964,9.6936,161.72,161.71,126.60954]
[1754237025164,3.51,161.72,161.71,126.60954]
[1754237025364,3.51,161.72,161.71,129.42954]
[1754237025568,9.6936,161.72,161.71,126.60954]
[1754237028070,3.51,161.72,161.71,129.42954]
[1754237028261,6.1833,161.73,161.71,129.42954]
[1754237028262,3.51,161.77,161.72,2.82]
[1754237028573,3.51,161.75,161.71,129.42954]
[1754237028865,3.51,161.72,161.71,129.42954]
[1754237035676,3.51,161.72,161.71,126.60954]
[1754237035870,9.6936,161.72,161.71,126.60954]
[1754237037475,3.51,161.72,161.71,129.42954]
[1754237039978,9.6936,161.72,161.71,126.60954]
[1754237040471,3.51,161.72,161.71,126.60954]
[1754237040673,3.51,161.72,161.71,129.42954]
[1754237041770,3.51,161.74,161.71,139.01824777]
[1754237041975,6.22470777,161.8,161.71,132.83424777]
[1754237042177,3.51,161.78,161.74,2.82]
[1754237042379,3.51,161.77,161.76,2.82]
[1754237042677,3.51,161.77,161.76,115.84]
[1754237044277,9.6917,161.77,161.76,115.84]
[1754237044582,3.51,161.77,161.75,113.02]
[1754237045577,9.6923,161.76,161.75,113.02]
[1754237051988,3.51,161.77,161.76,2.82]
[1754237052582,3.51,161.83,161.76,2.82]
[1754237052787,3.51,161.83,161.73,5.17807241]
[1754237052788,3.51,161.83,161.78,2.82]
[1754237053675,6.1809,161.8,161.78,2.82]
[1754237053979,3.22,161.79,161.78,2.82]
[1754237056184,3.22,161.79,161.77,119.22470777]
[1754237056385,6.1806,161.8,161.77,119.22470777]
[1754237056583,3.22,161.78,161.77,119.22470777]
[1754237056987,3.22,161.78,161.77,122.04470777]
[1754237064192,3.22,161.78,161.77,119.22470777]
[1754237064895,3.22,161.78,161.77,122.04470777]
[1754237065088,3.22,161.85,161.78,2.82]
[1754237065289,3.22,161.85,161.79,112.98]
[1754237065485,6.22470777,161.83,161.73,5.17807241]
[1754237065691,119.81432049,161.87,161.71,22.67424777]
[1754237065692,3.22,161.8,161.71,22.67424777]
[1754237065992,3.22,161.8,161.72,112.98]
[1754237066189,6.1832,161.74,161.71,22.67424777]
[1754237066393,3.22,161.73,161.72,112.98]
[1754237067291,3.22,161.76,161.71,13.62954]
[1754237067490,3.22,161.74,161.72,112.98]
[1754237067689,7.93639171,161.73,161.72,112.98]
[1754237068089,14.11969171,161.73,161.72,112.98]
[1754237070496,6.1836,161.72,161.71,13.62954]
[1754237070695,9.4036,161.72,161.71,126.62954]
[1754237072791,9.4036,161.72,161.71,129.44954]
[1754237073795,3.22,161.81,161.71,132.85424777]
[1754237073996,3.22,161.79,161.72,2.82]
[1754237074198,3.22,161.77,161.73,113.0]
[1754237074394,6.1829,161.74,161.73,113.0]
[1754237074604,7.9356253,161.74,161.71,16.44954]
[1754237074897,3.22,161.73,161.72,2.82]
[1754237075099,6.22470777,161.78,161.72,115.82]
[1754237075299,4.71524319,161.77,161.73,2.82]
[1754237075596,7.93524319,161.76,161.75,2.82]
[1754237075897,3.22,161.81,161.76,2.82]
[1754237076095,3.22,161.81,161.75,119.24470777]
[1754237076096,3.22,161.79,161.77,115.86]
[1754237076300,3.22,161.78,161.77,115.86]
[1754237080101,7.93853611,161.78,161.77,115.86]
[1754237080501,7.93853611,161.78,161.77,2.82]
[1754237080702,7.93853611,161.78,161.77,115.84]
[1754237082003,14.11983611,161.78,161.77,115.84]
[1754237082807,14.11983611,161.78,161.77,2.82]
[1754237083007,14.11983611,161.78,161.77,115.82]
[1754237084000,9.4013,161.78,161.77,115.82]
[1754237084506,14.12085156,161.78,161.77,115.82]
[1754237084904,9.4013,161.78,161.77,115.82]
[1754237085104,6.1817,161.77,161.75,6.22470777]
[1754237085308,3.44,161.77,161.76,115.82]
[1754237090509,3.44,161.77,161.76,2.82]
[1754237090714,3.44,161.77,161.76,115.82]
[1754237090901,9.6209,161.8,161.77,2.82]
[1754237091098,3.44,161.82,161.78,122.02470777]
[1754237091302,3.44,161.82,161.79,2.82]
[1754237091498,6.1801,161.82,161.8,115.8]
[1754237091703,3.44,161.81,161.8,122.02470777]
[1754237094410,9.6202,161.81,161.8,122.02470777]
[1754237094609,9.6202,161.81,161.8,112.98]
[1754237095504,3.44,161.81,161.8,115.8]
[1754237096106,3.44,161.81,161.8,2.82]
[1754237096311,3.44,161.82,161.8,115.8]
[1754237096809,3.44,161.86,161.8,119.20470777]
[1754237097004,3.44,161.84,161.81,2.82]
[1754237097310,6.1794,161.83,161.82,115.8]
[1754237097516,9.6194,161.83,161.82,115.8]
[1754237099110,9.6194,161.83,161.82,112.98]
[1754237099313,9.6194,161.83,161.82,115.8]
[1754237102012,9.6194,161.83,161.82,112.98]
[1754237102311,9.6194,161.83,161.82,115.8]
[1754237103109,9.6194,161.83,161.82,112.98]
[1754237104402,9.6194,161.83,161.82,115.8]
[1754237104809,9.6194,161.83,161.82,112.98]
[1754237105013,3.44,161.83,161.82,112.96]
[1754237105915,9.6194,161.83,161.82,112.96]
[1754237109812,6.1798,161.82,161.81,2.82]
[1754237110113,9.6198,161.82,161.81,115.76]
[1754237111008,6.1796,161.83,161.81,112.94]
[1754237111213,3.44,161.82,161.81,112.94]
[1754237111814,9.6198,161.82,161.81,115.76]
[1754237112619,9.6198,161.82,161.81,119.75115152]
[1754237113317,9.6198,161.82,161.81,116.93115152]
[1754237114516,3.44,161.82,161.8,112.94]
[1754237114911,6.1806,161.8,161.79,3.99115152]
[1754237115116,9.5306,161.8,161.79,3.99115152]
[1754237116520,3.35,161.8,161.79,6.80115152]
[1754237116724,3.35,161.8,161.79,2.81]
[1754237117226,3.35,161.79,161.78,121.98754746]
[1754237118019,3.35,161.79,161.78,9.04754746]
[1754237118215,9.531,161.79,161.78,121.98754746]
[1754237120024,9.531,161.79,161.78,9.04754746]
[1754237120223,9.531,161.79,161.78,121.98754746]
[1754237120423,6.1807,161.8,161.78,119.17754746]
[1754237120720,9.5307,161.8,161.79,2.81]
[1754237120924,9.5302,161.81,161.79,2.81]
[1754237121125,9.5302,161.81,161.8,112.94]
[1754237121431,9.5302,161.81,161.8,115.75]
[1754237122630,3.35,161.86,161.81,2.81]
[1754237123133,6.1797,161.83,161.81,2.81]
[1754237123327,9.5297,161.83,161.81,2.81]
[1754237123628,3.35,161.82,161.8,119.17754746]
[1754237124025,3.35,161.82,161.81,2.81]
[1754237124642,9.5298,161.82,161.81,2.81]
[1754237126628,6.1798,161.82,161.8,119.17754746]
[1754237126829,3.35,161.81,161.8,121.98754746]
[1754237131635,9.5298,161.82,161.81,2.82]
[1754237133136,14.09655621,161.82,161.81,2.82]
[1754237133731,3.35,161.81,161.8,121.99754746]
[1754237134336,7.91860025,161.81,161.8,121.99754746]
[1754237134537,7.91860025,161.81,161.8,127.19742967]
[1754237134726,3.35,161.81,161.8,127.19742967]
[1754237135333,7.92085724,161.81,161.8,127.19742967]
[1754237136637,7.92085724,161.81,161.8,124.95092082]
[1754237138142,14.10105724,161.81,161.8,119.75103861]
[1754237138840,14.10105724,161.81,161.8,116.93103861]
[1754237139239,9.5302,161.81,161.8,116.93103861]
[1754237140746,9.5302,161.81,161.8,3.99103861]
[1754237140936,9.5302,161.81,161.8,116.91103861]
[1754237141340,9.531,161.79,161.78,9.19092082]
[1754237141541,9.531,161.79,161.78,3.99103861]
[1754237141848,9.531,161.79,161.78,112.92]
[1754237143246,14.10809409,161.79,161.78,112.92]
[1754237143442,6.1817,161.77,161.76,3.99103861]
[1754237143642,9.4417,161.77,161.76,116.91103861]
[1754237144242,9.4417,161.77,161.76,119.73103861]
[1754237144243,3.26,161.77,161.76,119.73103861]
[1754237144647,3.26,161.77,161.76,115.74]
[1754237145247,9.4417,161.77,161.76,115.74]
[1754237148150,9.4417,161.77,161.76,2.82]
[1754237148353,9.4417,161.77,161.76,115.74]
[1754237149548,3.26,161.83,161.77,2.82]
[1754237149754,4.57327444,161.82,161.78,115.74]
[1754237149953,3.26,161.8,161.78,115.74]
[1754237150255,3.26,161.79,161.78,115.74]
[1754237151258,9.4411,161.79,161.78,115.74]
[1754237154056,6.1811,161.79,161.78,115.74]
[1754237154358,6.1807,161.8,161.79,2.82]
[1754237154554,10.74207167,161.8,161.79,121.97983373]
[1754237154760,6.1807,161.8,161.79,121.97983373]
[1754237156162,9.4407,161.8,161.79,121.97983373]
[1754237158866,3.26,161.8,161.79,121.97983373]
[1754237160661,3.26,161.82,161.79,119.15983373]
[1754237160868,3.26,161.82,161.81,6.23983373]
[1754237161168,3.26,161.82,161.81,121.95983373]
[1754237162668,7.82095999,161.82,161.81,119.13983373]
[1754237164170,14.000486,161.82,161.81,119.13983373]
[1754237165171,7.820686,161.82,161.81,119.13983373]
[1754237165372,7.820686,161.82,161.81,121.95983373]
[1754237165668,3.26,161.82,161.81,121.95983373]
[1754237166671,3.26,161.82,161.81,119.71063918]
[1754237168069,112.89319049,161.87,161.82,2.82]
[1754237168274,3.26,161.86,161.85,3.99063918]
[1754237168568,9.4386,161.86,161.85,116.87063918]
[1754237171880,3.26,161.86,161.85,119.69063918]
[1754237172676,3.26,161.86,161.85,116.87063918]
[1754237173886,9.4383,161.86,161.85,116.87063918]
[1754237182786,9.4383,161.86,161.85,116.83063918]
[1754237186882,9.4383,161.86,161.85,3.99063918]
[1754237192391,3.26,161.86,161.85,6.80063918]
[1754237192594,3.19,161.87,161.86,2.81]
[1754237192794,3.19,161.88,161.86,112.82]
[1754237192996,3.19,161.88,161.87,6.80063918]
[1754237193499,9.3675,161.88,161.87,6.80063918]
[1754237193795,3.19,161.88,161.87,6.80063918]
[1754237194186,3.19,161.88,161.87,2.81]
[1754237194393,3.19,161.88,161.87,6.80063918]
[1754237194687,9.3678,161.88,161.86,115.63]
[1754237194892,3.19,161.86,161.8,8.00988221]
[1754237195096,3.19,161.84,161.8,116.81063918]
[1754237195296,6.1801,161.82,161.8,116.81063918]
[1754237195496,3.19,161.81,161.8,116.81063918]
[1754237195995,3.19,161.81,161.8,119.62063918]
[1754237196699,3.19,161.81,161.8,115.63]
[1754237197698,3.19,161.81,161.8,2.81]
[1754237197900,3.19,161.81,161.8,115.63]
[1754237198803,3.19,161.87,161.81,2.81]
[1754237198994,3.19,161.87,161.86,9.04745241]
[1754237199199,3.19,161.87,161.86,121.86745241]
[1754237199799,109.71826324,161.88,161.86,119.05745241]
[1754237199999,109.71826324,161.88,161.87,2.81]
[1754237200000,3.19,161.88,161.87,2.81]
[1754237200901,9.3675,161.88,161.86,121.86745241]
[1754237201100,3.19,161.87,161.86,121.86745241]
[1754237204000,3.19,161.87,161.86,112.82]
[1754237204001,9.3679,161.87,161.86,112.82]
[1754237206597,6.1784,161.86,161.85,112.8]
[1754237207203,9.6384,161.86,161.85,112.8]
[1754237207407,9.6387,161.85,161.84,6.23745241]
[1754237207595,9.6387,161.85,161.84,119.03745241]
[1754237207799,9.6387,161.85,161.84,112.8]
[1754237208403,9.6387,161.85,161.84,115.62]
[1754237208703,14.24484078,161.85,161.84,115.62]
[1754237209605,9.6387,161.85,161.84,115.62]
[1754237210201,9.6387,161.85,161.84,112.8]
[1754237212212,3.46,161.83,161.79,2.82]
[1754237212405,3.46,161.83,161.8,112.78]
[1754237212611,6.1798,161.82,161.81,2.82]
[1754237212808,9.6398,161.82,161.81,2.82]
[1754237213616,3.46,161.84,161.81,2.82]
[1754237213808,3.46,161.84,161.83,2.82]
[1754237214008,3.46,161.84,161.82,119.01745241]
[1754237214312,9.6394,161.83,161.82,119.01745241]
[1754237214612,9.6394,161.83,161.82,112.78]
[1754237216108,9.6394,161.83,161.8,2.82]
[1754237216411,3.46,161.82,161.81,115.62]
[1754237217611,3.46,161.82,161.81,2.82]
[1754237217810,3.46,161.82,161.81,115.62]
[1754237218511,9.6398,161.82,161.81,115.62]
[1754237220209,3.46,161.82,161.81,115.62]
[1754237221616,9.6398,161.82,161.81,115.62]
[1754237221813,6.1798,161.82,161.81,112.8]
[1754237222015,9.6398,161.82,161.81,112.8]
[1754237225518,9.6398,161.82,161.81,115.62]
[1754237226121,3.46,161.83,161.82,2.82]
[1754237226414,6.23745241,161.87,161.81,112.8]
[1754237226621,6.23745241,161.87,161.81,115.62]
[1754237226821,3.46,161.86,161.81,115.62]
[1754237228021,3.46,161.86,161.81,112.8]
[1754237228321,3.46,161.86,161.82,2.82]
[1754237228925,6.1798,161.82,161.81,112.8]
[1754237229122,9.6398,161.82,161.81,115.62]
[1754237232522,3.46,161.83,161.81,112.8]
[1754237232721,3.46,161.83,161.82,2.82]
[1754237233826,9.6395,161.83,161.82,2.82]
[1754237235227,6.1798,161.82,161.81,115.61]
[1754237235523,9.5398,161.82,161.81,115.61]
[1754237236319,9.5398,161.82,161.81,112.8]
[1754237236526,6.23745241,161.83,161.76,2.81]
[1754237236718,3.36,161.82,161.76,2.81]
[1754237236919,6.1817,161.77,161.76,115.59]
[1754237237118,9.5417,161.77,161.76,115.59]
[1754237237520,9.5417,161.77,161.76,112.78]
[1754237238617,3.36,161.77,161.76,115.59]
[1754237240327,9.5417,161.77,161.76,115.59]
[1754237242826,9.5417,161.77,161.76,112.78]
[1754237245132,9.5417,161.77,161.76,115.59]
[1754237245726,3.36,161.77,161.76,115.59]
[1754237249240,9.5417,161.77,161.76,115.59]
[1754237249425,9.5417,161.77,161.76,112.78]
[1754237252933,9.5417,161.77,161.76,115.59]
[1754237253841,3.36,161.77,161.76,115.59]
[1754237255838,3.36,161.78,161.77,2.81]
[1754237256939,3.36,161.78,161.76,115.59]
[1754237257543,3.36,161.8,161.73,11.41904836]
[1754237257739,3.36,161.78,161.71,13.62954]
[1754237258044,3.36,161.78,161.72,112.8]
[1754237258243,3.36,161.73,161.72,112.8]
[1754237261642,6.1832,161.73,161.72,112.8]
[1754237261838,6.1832,161.73,161.71,16.43954]
[1754237261839,3.36,161.73,161.71,13.62954]
[1754237262641,6.1836,161.72,161.71,13.62954]
[1754237262846,9.5436,161.72,161.71,13.62954]
[1754237265242,9.5436,161.72,161.71,4e-05]
[1754237266742,14.06017122,161.72,161.71,4e-05]
[1754237268147,7.87657122,161.72,161.65,112.82]
[1754237268345,3.51,161.71,161.66,3.26]
[1754237268650,3.51,161.71,161.67,3.26]
[1754237268847,3.51,161.71,161.65,112.82]
[1754237269044,3.51,161.71,161.66,3.26]
[1754237269657,6.1859,161.67,161.65,112.82]
[1754237270047,9.6959,161.67,161.65,112.82]
[1754237270350,6.1859,161.66,161.65,112.82]
[1754237270741,6.1863,161.65,161.64,3.26]
[1754237271054,9.6963,161.65,161.64,3.26]
[1754237276150,6.187,161.64,161.61,3.26]
[1754237276356,3.51,161.63,161.61,3.26]
[1754237276851,6.23745241,161.69,161.61,3.26]
[1754237277058,3.51,161.67,161.61,3.26]
[1754237277256,6.1872,161.63,161.61,3.26]
[1754237277459,3.51,161.63,161.61,3.26]
[1754237277859,3.51,161.63,161.62,3.26]
[1754237278160,3.51,161.63,161.6,6.23745241]
[1754237278456,3.51,161.63,161.61,3.26]
[1754237278762,9.6971,161.63,161.61,3.26]
[1754237279457,3.51,161.67,161.62,6.23745241]
[1754237279657,3.51,161.67,161.63,3.26]
[1754237280058,3.51,161.67,161.64,3.26]
[1754237280454,3.51,161.67,161.64,9.49745241]
[1754237280661,3.51,161.68,161.65,3.26]
[1754237281058,3.51,161.67,161.65,3.26]
[1754237281660,112.67871336,161.7,161.63,112.86]
[1754237281661,3.51,161.69,161.63,112.86]
[1754237281860,3.51,161.69,161.66,3.26]
[1754237282960,3.51,161.69,161.63,116.12]
[1754237283665,9.6966,161.65,161.64,3.26]
[1754237284066,3.51,161.69,161.64,3.26]
[1754237284269,6.186,161.66,161.64,3.26]
[1754237284564,3.51,161.65,161.64,3.26]
[1754237285160,9.6963,161.65,161.64,3.26]
[1754237285360,3.51,161.67,161.64,3.26]
[1754237285560,3.51,161.66,161.64,3.26]
[1754237285865,112.67871336,161.7,161.64,3.26]
[1754237286066,3.51,161.67,161.64,3.26]
[1754237286567,112.67871336,161.7,161.64,3.26]
[1754237286568,3.51,161.66,161.64,3.26]
[1754237286762,9.6962,161.66,161.64,3.26]
[1754237287468,3.51,161.67,161.64,3.26]
[1754237287969,9.6956,161.67,161.64,3.26]
[1754237288167,6.1856,161.67,161.65,3.26]
[1754237288968,9.6953,161.68,161.65,3.26]
[1754237289363,6.1855,161.67,161.65,3.26]
[1754237289574,9.6955,161.67,161.65,3.26]
[1754237290068,3.51,161.67,161.65,3.26]
[1754237290668,3.51,161.67,161.64,6.23745241]
[1754237290862,3.51,161.67,161.66,3.26]
[1754237291071,9.6955,161.67,161.66,3.26]
[1754237292463,3.51,161.65,161.64,3.26]
[1754237292967,3.51,161.65,161.62,112.84]
[1754237293167,9.6963,161.65,161.63,3.26]
[1754237293368,3.51,161.69,161.63,3.26]
[1754237293868,3.5,161.65,161.63,3.26]
[1754237294171,3.5,161.69,161.64,3.35]
[1754237295173,6.1856,161.67,161.64,9.5366]
[1754237295469,9.6856,161.67,161.65,3.35]
[1754237298975,3.5,161.67,161.65,3.35]
[1754237299664,9.6856,161.67,161.65,3.35]
[1754237301870,3.5,161.66,161.65,3.35]
[1754237302370,9.6856,161.67,161.65,3.35]
[1754237302572,3.5,161.67,161.65,3.35]
[1754237302873,3.5,161.67,161.66,3.35]
[1754237304266,3.5,161.69,161.66,9.5358]
[1754237304461,3.5,161.75,161.68,3.35]
[1754237304666,3.5,161.75,161.72,3.35]
[1754237304870,3.5,161.75,161.73,6.23745241]
[1754237304871,3.5,161.74,161.73,6.23745241]
[1754237305074,3.5,161.74,161.73,9.58745241]
[1754237306974,6.1821,161.77,161.74,3.35]
[1754237307174,3.5,161.78,161.74,3.35]
[1754237307573,6.182,161.77,161.75,3.35]
[1754237307772,3.5,161.76,161.75,3.35]
[1754237307973,3.5,161.76,161.73,9.58745241]
[1754237308166,6.1824,161.76,161.73,6.23745241]
[1754237308374,3.5,161.75,161.74,3.35]
[1754237324301,3.5,161.75,161.73,6.23745241]
[1754237324495,3.5,161.75,161.74,3.29]
[1754237325501,9.6825,161.75,161.74,3.29]
[1754237326702,9.6825,161.75,161.74,7.28414105]
[1754237327604,6.1834,161.73,161.71,3.29]
[1754237327793,3.19,161.72,161.69,3.99414105]
[1754237327993,3.19,161.74,161.71,3.99414105]
[1754237328193,3.19,161.72,161.68,3.29]
[1754237328397,3.19,161.72,161.68,3.99414105]
[1754237328906,3.19,161.69,161.67,3.29]
[1754237329097,3.19,161.69,161.68,3.99414105]
[1754237329297,9.3748,161.69,161.68,3.99414105]
[1754237330598,9.3748,161.69,161.67,3.29]
[1754237330897,3.19,161.67,161.64,112.76]
[1754237331408,3.19,161.67,161.64,6.1866]
[1754237331600,6.1854,161.68,161.65,3.29]
[1754237331799,3.19,161.72,161.63,9.53678591]
[1754237332000,3.19,161.67,161.64,3.29]
[1754237332201,3.19,161.66,161.64,3.29]
[1754237333106,3.19,161.65,161.64,3.29]
[1754237335711,9.3763,161.65,161.64,3.29]
[1754237336007,3.19,161.7,161.64,3.29]
[1754237336195,3.19,161.67,161.64,3.29]
[1754237336398,3.19,161.7,161.64,3.29]
[1754237336597,6.1861,161.66,161.64,3.29]
[1754237336799,3.19,161.65,161.64,3.29]
[1754237337297,3.19,161.65,161.62,6.24678591]
[1754237337495,9.3763,161.65,161.64,3.29]
[1754237339704,9.3763,161.65,161.62,6.24678591]
[1754237339910,9.3763,161.65,161.6,6.1879]
[1754237339911,3.19,161.63,161.61,3.29]
[1754237340303,3.19,161.63,161.62,3.29]
[1754237341110,3.19,161.64,161.62,3.29]
[1754237341513,6.1864,161.65,161.62,3.29]
[1754237341713,3.19,161.63,161.62,3.29]
[1754237342211,6.1864,161.65,161.62,3.29]
[1754237342212,3.19,161.64,161.62,3.29]
[1754237343515,9.3761,161.66,161.62,6.24678591]
[1754237343720,3.19,161.65,161.63,3.29]
[1754237344215,3.19,161.64,161.63,3.29]
[1754237348314,3.19,161.64,161.62,6.24678591]
[1754237348714,3.19,161.64,161.62,9.53678591]
[1754237350320,9.3768,161.64,161.62,9.53678591]
[1754237350621,3.19,161.63,161.62,9.53678591]
[1754237357928,6.1863,161.65,161.62,9.53678591]
[1754237358126,3.21,161.69,161.64,6.24678591]
[1754237358331,3.21,161.69,161.65,3.19]
[1754237358634,3.21,161.66,161.65,3.19]
[1754237361224,6.1859,161.66,161.59,117.92769666]
[1754237361430,3.21,161.65,161.64,3.19]
[1754237361919,9.3963,161.65,161.64,3.19]
[1754237363527,3.21,161.65,161.64,3.19]
[1754237363826,3.21,161.72,161.64,3.19]
[1754237364220,6.1858,161.67,161.64,3.19]
[1754237364425,3.21,161.65,161.64,3.19]
[1754237369330,3.21,161.67,161.64,3.19]
[1754237369538,3.21,161.67,161.66,3.19]
[1754237370631,132.38590803,161.74,161.65,6.24678591]
[1754237370632,3.21,161.7,161.65,6.24678591]
[1754237370933,3.21,161.7,161.69,3.19]
[1754237371830,3.21,161.71,161.69,3.19]
[1754237372044,6.1834,161.73,161.71,3.19]
[1754237372233,118.23668065,161.74,161.73,3.19]
[1754237372537,121.44668065,161.74,161.73,3.19]
[1754237373432,127.62958065,161.74,161.73,3.19]
[1754237374736,9.3932,161.73,161.72,6.24678591]
[1754237376836,9.3936,161.72,161.71,3.19]
[1754237377141,118.23668065,161.74,161.67,5.16769666]
[1754237377142,3.21,161.73,161.67,3.19]
[1754237377331,3.21,161.73,161.66,6.24678591]
[1754237377529,6.1854,161.68,161.66,9.43678591]
[1754237377739,3.21,161.67,161.66,9.43678591]
[1754237378736,9.3955,161.67,161.66,3.19]
[1754237379835,6.24678591,161.73,161.65,3.19]
[1754237379836,9.396,161.66,161.65,3.19]
[1754237381839,6.186,161.66,161.62,6.24678591]
[1754237382041,3.21,161.64,161.63,3.19]
[1754237384245,6.186,161.66,161.63,3.19]
[1754237384444,3.38,161.65,161.63,3.19]
[1754237386840,6.186,161.66,161.63,3.19]
[1754237387047,3.38,161.64,161.62,6.24678591]
[1754237387442,3.38,161.64,161.62,9.48678591]
[1754237387643,3.38,161.64,161.63,3.24]
[1754237389448,3.38,161.64,161.62,9.48678591]
[1754237390448,3.38,161.64,161.62,6.24678591]
[1754237390650,3.38,161.64,161.63,3.24]
[1754237396755,3.38,161.64,161.61,116.0]